fUSD/lending_fUSD_20260625
["ID","MTS","AMOUNT","RATE_DAILY","PERIOD"]
[426377481,1782335853000,-607.61,0.00030382,30]
[426377483,1782335853000,-209.22752823,0.00030746,30]
[426377474,1782335853000,-279.0,0.00029802,30]
[426377486,1782335853000,-1152.0,0.00030802,30]
[426377495,1782335853000,-9928.79,0.00031495,30]
[426377494,1782335853000,-2295.38,0.00031488,30]
[426377493,1782335853000,-1672.62,0.00031462,30]
[426377492,1782335853000,-2063.48,0.00031436,30]
[426377491,1782335853000,-216.26748491,0.00031388,120]
[426377484,1782335853000,-279.0,0.00030802,30]
[426377489,1782335853000,-209.22752823,0.00031355,30]
[426377487,1782335853000,-442.92,0.00030825,30]
[426377488,1782335853000,-857.22,0.00031,30]
[426377485,1782335853000,-155.0,0.00030802,30]
[426377490,1782335853000,-2845.6,0.00031382,30]
[426377496,1782335854000,-2692.99,0.00031495,30]
[426377497,1782335854000,-2889437.43589359,0.000315,120]
[426377498,1782335854000,-150.0,0.00031506,120]
[426377501,1782335855000,2877.97,0.00028527,30]
[426377499,1782335855000,3197.36,0.00028601,30]
[426377500,1782335855000,2313.11,0.00028563,30]
[426377503,1782335861000,569.67,0.0002976,30]
[426377504,1782335862000,569.67,0.00030945,30]
[426377506,1782335864000,152.67614355,0.00030562,120]
[426377507,1782335864000,152.67614355,0.00031388,120]
[426377505,1782335864000,152.67614355,0.00029736,120]
[426377508,1782335865000,162.15163324,0.00037605,120]
[426377509,1782335866000,162.15163324,0.00037605,120]
[426377511,1782335866000,162.15163324,0.00037605,120]
[426377512,1782335866000,854.51,0.0002602,30]
[426377510,1782335866000,158.27328414,0.00037605,120]
[426377519,1782335867000,177.13539783,0.00037605,120]
[426377518,1782335867000,151.0,0.00037605,120]
[426377516,1782335867000,854.51,0.00028065,30]
[426377517,1782335867000,151.0,0.00037605,120]
[426377515,1782335867000,162.15163324,0.00037605,120]
[426377514,1782335867000,162.15163324,0.00037605,120]
[426377520,1782335868000,151.0,0.00037605,120]
[426377521,1782335868000,162.15163324,0.00037605,120]
[426377522,1782335868000,151.0,0.00037605,120]
[426377523,1782335868000,222.07283768,0.00037605,120]
[426377524,1782335868000,162.15163324,0.00037605,120]
[426377527,1782335868000,151.0,0.00037605,120]
[426377526,1782335868000,151.0,0.00037605,120]
[426377528,1782335868000,157.18347548,0.00037605,120]
[426377529,1782335868000,222.07283768,0.00037605,120]
[426377525,1782335868000,156.587,0.00037605,120]
[426377530,1782335869000,174.38311214,0.00037605,120]
[426377531,1782335869000,162.15163324,0.00037605,120]
[426377532,1782335869000,151.0,0.00037605,120]
[426377533,1782335869000,151.0,0.00037605,120]
[426377534,1782335869000,156.36240147,0.00037605,120]
[426377535,1782335869000,222.07283768,0.00037605,120]
[426377537,1782335869000,1559.0,0.00028802,30]
[426377538,1782335869000,151.0,0.00037605,120]
[426377539,1782335869000,151.0,0.00037605,120]
[426377540,1782335869000,156.36240147,0.00037605,120]
[426377541,1782335869000,222.07283768,0.00037605,120]
[426377542,1782335869000,151.0,0.00037605,120]
[426377536,1782335869000,162.1516333,0.00037605,120]
[426377543,1782335870000,151.0,0.00037605,120]
[426377545,1782335870000,250.0,0.00037605,120]
[426377546,1782335870000,500.0,0.00037605,120]
[426377548,1782335870000,520.0,0.00037605,120]
[426377549,1782335870000,151.0,0.00037605,120]
[426377547,1782335870000,156.36240147,0.00037605,120]
[426377551,1782335870000,3000.0,0.00037605,120]
[426377552,1782335870000,1500.0,0.00037605,30]
[426377553,1782335870000,151.0,0.00037605,120]
[426377554,1782335870000,518.5,0.00037605,120]
[426377555,1782335870000,156.36240147,0.00037605,120]
[426377550,1782335870000,222.07283768,0.00037605,120]
[426377562,1782335871000,3000.0,0.00037605,120]
[426377556,1782335871000,539.24,0.00037605,120]
[426377558,1782335871000,151.0,0.00037605,120]
[426377557,1782335871000,222.07283768,0.00037605,120]
[426377559,1782335871000,1559.0,0.00029802,30]
[426377561,1782335871000,200.0,0.00037605,120]
[426377560,1782335871000,151.0,0.00037605,120]
[426377563,1782335871000,1500.0,0.00037605,30]
[426377565,1782335871000,151.0,0.00037605,120]
[426377570,1782335871000,156.587,0.00037605,120]
[426377567,1782335871000,559.19188,0.00037605,120]
[426377568,1782335871000,156.36240147,0.00037605,120]
[426377566,1782335871000,537.6845,0.00037605,120]
[426377569,1782335871000,222.07283768,0.00037605,120]
[426377571,1782335871000,151.0,0.00037605,120]
[426377572,1782335871000,200.0,0.00037605,120]
[426377574,1782335871000,1500.0,0.00037605,30]
[426377564,1782335871000,5032.71740843,0.00037605,120]
[426377573,1782335871000,3000.0,0.00037605,120]
[426377581,1782335872000,200.0,0.00037605,120]
[426377579,1782335872000,162.380719,0.00037605,120]
[426377577,1782335872000,156.36240147,0.00037605,120]
[426377575,1782335872000,151.0,0.00037605,120]
[426377576,1782335872000,519.22136258,0.00037605,120]
[426377580,1782335872000,151.0,0.00037605,120]
[426377578,1782335872000,222.07283768,0.00037605,120]
[426377582,1782335872000,3000.0,0.00037605,120]
[426377592,1782335872000,151.0,0.00037605,120]
[426377584,1782335872000,151.0,0.00037605,120]
[426377585,1782335872000,156.36240147,0.00037605,120]
[426377587,1782335872000,168.3888056,0.00037605,120]
[426377588,1782335872000,222.07283768,0.00037605,120]
[426377589,1782335872000,1559.0,0.00030802,30]
[426377590,1782335872000,151.0,0.00037605,120]
[426377591,1782335872000,200.0,0.00037605,120]
[426377593,1782335872000,1500.0,0.00037605,30]
[426377583,1782335872000,1500.0,0.00037605,30]
[426377600,1782335873000,1500.0,0.00037605,30]
[426377599,1782335873000,151.0,0.00037605,120]
[426377598,1782335873000,200.0,0.00037605,120]
[426377594,1782335873000,156.36240147,0.00037605,120]
[426377596,1782335873000,174.61919141,0.00037605,120]
[426377595,1782335873000,222.07283768,0.00037605,120]
[426377601,1782335873000,156.36240147,0.00037605,120]
[426377597,1782335873000,151.0,0.00037605,120]
[426377602,1782335873000,222.07283768,0.00037605,120]
[426377606,1782335873000,156.36240147,0.00037605,120]
[426377604,1782335873000,151.0,0.00037605,120]
[426377605,1782335873000,151.0,0.00037605,120]
[426377607,1782335873000,222.07283768,0.00037605,120]
[426377610,1782335873000,187.78006524,0.00037605,120]
[426377611,1782335873000,200.0,0.00037605,120]
[426377609,1782335873000,1500.0,0.00037605,30]
[426377612,1782335873000,151.0,0.00037605,120]
[426377613,1782335873000,156.36240147,0.00037605,120]
[426377614,1782335873000,1500.0,0.00037605,30]
[426377603,1782335873000,181.08010149,0.00037605,120]
[426377618,1782335874000,151.0,0.00037605,120]
[426377619,1782335874000,156.36240147,0.00037605,120]
[426377615,1782335874000,222.07283768,0.00037605,120]
[426377616,1782335874000,194.72792766,0.00037605,120]
[426377621,1782335874000,201.93286098,0.00037605,120]
[426377628,1782335874000,200.0,0.00037605,120]
[426377622,1782335874000,200.0,0.00037605,120]
[426377629,1782335874000,1500.0,0.00037605,30]
[426377627,1782335874000,209.40437684,0.00037605,120]
[426377620,1782335874000,222.07283768,0.00037605,120]
[426377625,1782335874000,156.36240147,0.00037605,120]
[426377626,1782335874000,222.07283768,0.00037605,120]
[426377641,1782335875000,151.0,0.00037605,120]
[426377640,1782335875000,1500.0,0.00037605,30]
[426377639,1782335875000,322.45897018,0.00037605,120]
[426377638,1782335875000,156.36240154,0.00037605,120]
[426377636,1782335875000,151.0,0.00037605,120]
[426377637,1782335875000,222.07283768,0.00037605,120]
[426377633,1782335875000,200.0,0.00037605,120]
[426377634,1782335875000,217.15233878,0.00037605,120]
[426377631,1782335875000,156.36240147,0.00037605,120]
[426377632,1782335875000,222.07283768,0.00037605,120]
[426377630,1782335875000,151.0,0.00037605,120]
[426377642,1782335875000,222.07283768,0.00037605,120]
[426377635,1782335875000,1500.0,0.00037605,30]
[426377644,1782335876000,222.07283768,0.00037605,120]
[426377643,1782335876000,1500.0,0.00037605,30]
[426377646,1782335876000,1500.0,0.00037605,30]
[426377648,1782335876000,151.0,0.00037605,120]
[426377647,1782335876000,222.07283771,0.00037605,120]
[426377645,1782335876000,151.0,0.00037605,120]
[426377652,1782335877000,151.0,0.00037605,120]
[426377651,1782335877000,1500.0,0.00037605,30]
[426377650,1782335877000,151.0,0.00037605,120]
[426377649,1782335877000,1500.0,0.00037605,30]
[426377656,1782335878000,151.0,0.00037605,120]
[426377655,1782335878000,1500.0,0.00037605,30]
[426377654,1782335878000,151.0,0.00037605,120]
[426377653,1782335878000,1500.0,0.00037605,30]
[426377660,1782335879000,151.0,0.00037605,120]
[426377659,1782335879000,1500.0,0.00037605,30]
[426377658,1782335879000,151.0,0.00037605,120]
[426377657,1782335879000,1500.0,0.00037605,30]
[426377661,1782335880000,151.0,0.00037605,120]
[426377662,1782335880000,1500.0,0.00037605,30]
[426377663,1782335880000,152.76820813,0.00029736,120]
[426377664,1782335880000,152.76820813,0.00030975,120]
[426377666,1782335882000,4000.0,0.00037605,120]
[426377671,1782335893000,9101.39,0.00031167,30]
[426377673,1782335896000,152.77189071,0.00029736,120]
[426377672,1782335896000,11585464.84277052,0.00037605,30]
[426377677,1782335897000,500.0,0.00029863,60]
[426377676,1782335897000,500.0,0.00029863,60]
[426377675,1782335897000,500.0,0.00029863,60]
[426377674,1782335897000,500.0,0.00029863,60]
[426377681,1782335898000,178.2677847,0.00029863,60]
[426377680,1782335898000,500.0,0.00029863,60]
[426377679,1782335898000,500.0,0.00029863,60]
[426377678,1782335898000,500.0,0.00029863,60]
[426377685,1782335910000,150.0,0.00030137,30]
[426377686,1782335911000,152.77433043,0.00029736,120]
[426377687,1782335913000,336.99770012,0.00030746,30]
[426377689,1782335916000,208.0,0.00028802,30]
[426377692,1782335917000,208.0,0.00029802,30]
[426377693,1782335919000,208.0,0.00030802,30]
[426377695,1782335923000,2272.3,0.00028543,30]
[426377696,1782335924000,2272.3,0.0002953,30]
[426377697,1782335926000,2525.91,0.00028617,30]
[426377699,1782335927000,152.77451379,0.00029736,120]
[426377698,1782335927000,2525.91,0.0002958,30]
[426377707,1782335929000,16020439.43152465,0.0003109,30]
[426377738,1782335994000,-532.45618696,0.00037524,120]
[426377737,1782335994000,-532.45618696,0.00037524,120]
[426377736,1782335994000,-532.45618696,0.00037524,120]
[426377734,1782335994000,-12500.0,0.00037524,30]
[426377735,1782335994000,-100000.0,0.00037524,30]
[426377742,1782335995000,-532.45618695,0.00037524,120]
[426377739,1782335995000,-532.45618696,0.00037524,120]
[426377740,1782335995000,-532.45618695,0.00037524,120]
[426377743,1782335995000,-532.45618695,0.00037524,120]
[426377741,1782335995000,-532.45618695,0.00037524,120]
[426377744,1782335995000,-532.45618695,0.00037524,120]
[426377747,1782335995000,-100000.0,0.00037524,30]
[426377745,1782335995000,-33455.89737159,0.00037524,30]
[426377746,1782335995000,-4000.0,0.00037524,120]
[426377748,1782335995000,-169.74823599,0.00037524,41]
[426377749,1782336002000,4000.0,0.00037524,120]
[426377752,1782336006000,532.45618696,0.00037524,120]
[426377751,1782336006000,532.45618696,0.00037524,120]
[426377750,1782336006000,532.45618696,0.00037524,120]
[426377755,1782336007000,532.45618695,0.00037524,120]
[426377754,1782336007000,532.45618695,0.00037524,120]
[426377753,1782336007000,532.45618695,0.00037524,120]
[426377769,1782336052000,-841.89,0.00026012,30]
[426377768,1782336052000,-916.57,0.00025115,30]
[426377772,1782336053000,-1831.65,0.00028579,30]
[426377770,1782336053000,-2419.7,0.00028532,30]
[426377793,1782336054000,-190.24,0.00031,120]
[426377794,1782336054000,-642.91,0.00031,30]
[426377792,1782336054000,-561.26,0.0003097,30]
[426377795,1782336055000,2168.15,0.00028747,30]
[426377797,1782336055000,3181.8,0.00028783,30]
[426377796,1782336055000,2342.54,0.00028615,30]
[426377799,1782336063000,3079.254316,0.00037524,120]
[426377803,1782336065000,537.15,0.00037524,120]
[426377800,1782336065000,152.77452341,0.00029736,120]
[426377806,1782336066000,537.15,0.00037524,120]
[426377805,1782336066000,537.15,0.00037524,120]
[426377804,1782336066000,537.15,0.00037524,120]
[426377807,1782336067000,537.15,0.00037524,120]
[426377808,1782336067000,537.15,0.00037524,120]
[426377810,1782336067000,150.0,0.00037524,120]
[426377811,1782336067000,537.15,0.00037524,120]
[426377809,1782336067000,537.15,0.00037524,120]
[426377815,1782336068000,537.15,0.00037524,120]
[426377814,1782336068000,150.0,0.00037524,120]
[426377813,1782336068000,537.15,0.00037524,120]
[426377812,1782336068000,537.15,0.00037524,120]
[426377816,1782336069000,537.15,0.00037524,120]
[426377818,1782336069000,537.15,0.00037524,120]
[426377819,1782336069000,537.15,0.00037524,120]
[426377817,1782336069000,150.0,0.00037524,120]
[426377824,1782336070000,537.15,0.00037524,120]
[426377823,1782336070000,537.15,0.00037524,120]
[426377822,1782336070000,157.741,0.00037524,120]
[426377820,1782336070000,537.15,0.00037524,120]
[426377825,1782336070000,537.15,0.00037524,120]
[426377828,1782336071000,537.15,0.00037524,120]
[426377827,1782336071000,537.15,0.00037524,120]
[426377826,1782336071000,537.15,0.00037524,120]
[426377829,1782336072000,222.0,0.00028762,30]
[426377831,1782336072000,537.15,0.00037524,120]
[426377830,1782336072000,537.15,0.00037524,120]
[426377832,1782336072000,537.33016505,0.00037524,120]
[426377833,1782336073000,222.0,0.00029762,30]
[426377835,1782336075000,222.0,0.00030762,30]
[426377837,1782336079000,532.45618696,0.00037524,120]
[426377840,1782336079000,532.45618695,0.00037524,120]
[426377838,1782336079000,532.45618696,0.00037524,120]
[426377841,1782336080000,532.45618695,0.00037524,120]
[426377842,1782336084000,12394095.72570483,0.00037524,30]
[426377849,1782336093000,150.0,0.00031233,60]
[426377859,1782336104000,100000.0,0.00037524,30]
[426377862,1782336105000,-1214965.09979425,0.00037524,20]
[426377860,1782336105000,-18420.22551566,0.00037524,20]
[426377861,1782336105000,-766614.67469009,0.00037524,20]
[426377863,1782336106000,13041.11,0.00030963,30]
[426377870,1782336113000,251.0,0.00028762,30]
[426377871,1782336115000,251.0,0.00029762,30]
[426377874,1782336116000,251.0,0.00030762,30]
[426377876,1782336120000,-268240.01251132,0.00037524,20]
[426377878,1782336120000,-115464.28,0.00037524,20]
[426377879,1782336120000,-115603.37690633,0.00037524,20]
[426377881,1782336120000,-50000.0,0.00037524,29]
[426377880,1782336120000,-50000.0,0.00037524,23]
[426377882,1782336120000,-50000.0,0.00037524,27]
[426377883,1782336120000,-2387751.19667939,0.00037524,20]
[426377877,1782336120000,-426268.5551172,0.00037524,20]
[426377885,1782336120000,-1983985.22716868,0.00037524,20]
[426377886,1782336120000,-4219788.22031277,0.00037524,20]
[426377887,1782336120000,-1057.18585809,0.00037524,20]
[426377888,1782336120000,-57899.71870112,0.00037524,20]
[426377889,1782336120000,-500.0,0.00037524,20]
[426377884,1782336120000,-135843.4598536,0.00037524,20]
[426377890,1782336120000,-500.0,0.00037524,20]
[426377891,1782336120000,-500.0,0.00037524,20]
[426377892,1782336121000,-500.0,0.00037524,20]
[426377893,1782336121000,-500.0,0.00037524,20]
[426377894,1782336121000,-500.0,0.00037524,20]
[426377895,1782336121000,-500.0,0.00037524,20]
[426377896,1782336121000,-500.0,0.00037524,20]
[426377897,1782336121000,-500.0,0.00037524,20]
[426377898,1782336121000,-500.0,0.00037524,20]
[426377899,1782336121000,-500.0,0.00037524,20]
[426377908,1782336121000,-3225234.84083226,0.00037524,20]
[426377901,1782336121000,-500.0,0.00037524,20]
[426377906,1782336121000,-500.0,0.00037524,20]
[426377907,1782336121000,-262.99936841,0.00037524,20]
[426377905,1782336121000,-500.0,0.00037524,20]
[426377900,1782336121000,-500.0,0.00037524,20]
[426377903,1782336121000,-500.0,0.00037524,20]
[426377904,1782336121000,-500.0,0.00037524,20]
[426377902,1782336121000,-500.0,0.00037524,20]
[426377912,1782336123000,1224.7,0.00037524,120]
[426377911,1782336123000,1967.07,0.00028699,30]
[426377913,1782336124000,569.67,0.00029877,30]
[426377915,1782336125000,569.67,0.00031027,30]
[426377914,1782336125000,1816.73,0.00028827,30]
[426377916,1782336128000,2668.41,0.00028863,30]
[426377925,1782336139000,150.0,0.00031233,60]
[426377929,1782336147000,709.9415826,0.00037524,120]
[426377928,1782336147000,709.94158261,0.00037524,120]
[426377933,1782336167000,1500.0,0.00037524,30]
[426377934,1782336168000,1500.0,0.00037524,30]
[426377935,1782336168000,1143.0,0.00028764,30]
[426377937,1782336168000,1500.0,0.00037524,30]
[426377936,1782336168000,151.0,0.00037524,120]
[426377943,1782336169000,151.0,0.00037524,120]
[426377942,1782336169000,1143.0,0.00029764,30]
[426377941,1782336169000,1500.0,0.00037524,30]
[426377940,1782336169000,151.0,0.00037524,120]
[426377939,1782336169000,1500.0,0.00037524,30]
[426377938,1782336169000,151.0,0.00037524,120]
[426377948,1782336170000,151.0,0.00037524,120]
[426377947,1782336170000,1500.0,0.00037524,30]
[426377946,1782336170000,151.0,0.00037524,120]
[426377945,1782336170000,1500.0,0.00037524,30]
[426377950,1782336171000,1143.0,0.00030764,30]
[426377951,1782336171000,1500.0,0.00037524,30]
[426377957,1782336172000,1500.0,0.00037524,30]
[426377952,1782336172000,151.0,0.00037524,120]
[426377953,1782336172000,1500.0,0.00037524,30]
[426377956,1782336172000,151.0,0.00037524,120]
[426377955,1782336172000,1500.0,0.00037524,30]
[426377954,1782336172000,151.0,0.00037524,120]
[426377961,1782336173000,1500.0,0.00037524,30]
[426377960,1782336173000,151.0,0.00037524,120]
[426377959,1782336173000,1500.0,0.00037524,30]
[426377958,1782336173000,151.0,0.00037524,120]
[426377965,1782336174000,1500.0,0.00037524,30]
[426377964,1782336174000,151.0,0.00037524,120]
[426377963,1782336174000,1500.0,0.00037524,30]
[426377962,1782336174000,151.0,0.00037524,120]
[426377967,1782336175000,1500.0,0.00037524,30]
[426377966,1782336175000,151.0,0.00037524,120]
[426377970,1782336175000,151.0,0.00037524,120]
[426377968,1782336175000,151.0,0.00037524,120]
[426377969,1782336175000,1500.0,0.00037524,30]
[426377974,1782336176000,151.0,0.00037524,120]
[426377973,1782336176000,1500.0,0.00037524,30]
[426377972,1782336176000,151.0,0.00037524,120]
[426377971,1782336176000,1500.0,0.00037524,30]
[426377977,1782336177000,151.0,0.00037524,120]
[426377975,1782336177000,1500.0,0.00037524,30]
[426377976,1782336177000,151.0,0.00037524,120]
[426377978,1782336178000,349.14,9.977e-05,2]
[426377985,1782336193000,1936.67,0.00028782,30]
[426377986,1782336195000,2549.37,0.00028944,30]
[426377988,1782336199000,608.67,0.00029947,30]
[426377989,1782336199000,1702.76,0.00028908,30]
[426377990,1782336200000,608.67,0.00031086,30]
[426377993,1782336204000,482.18,0.000312,30]
[426377994,1782336205000,5048106.88023503,0.00037524,30]
[426377999,1782336213000,11954.35,0.00030371,30]
[426378002,1782336214000,946.58877681,0.00037524,120]
[426378001,1782336214000,11954.35,0.00031166,30]
[426378009,1782336219000,155.0,0.00028762,30]
[426378011,1782336220000,155.0,0.00029762,30]
[426378012,1782336221000,155.0,0.00030762,30]
[426378013,1782336223000,150.0,0.00037528,30]
[426378031,1782336249000,464.0,0.00028762,30]
[426378034,1782336250000,464.0,0.00029762,30]
[426378036,1782336251000,464.0,0.00030762,30]
[426378042,1782336262000,150.0,0.00031233,60]
[426378041,1782336262000,150.0,0.00031233,60]
[426378043,1782336263000,210.36321723,0.00031233,60]
[426378044,1782336264000,1347.84,9.872e-05,2]
[426378047,1782336266000,1905.35,0.00028862,30]
[426378048,1782336274000,2550.08,0.00029024,30]
[426378050,1782336278000,1700.42,0.00028988,30]
[426378051,1782336280000,631.05918454,0.00037528,120]
[426378053,1782336283000,580.65,0.00030015,30]
[426378054,1782336284000,580.65,0.00031142,30]
[426378061,1782336300000,151.0,0.00028764,30]
[426378063,1782336302000,151.0,0.00029764,30]
[426378065,1782336303000,151.0,0.00030764,30]
[426378069,1782336306000,560.701,0.00037528,120]
[426378073,1782336316000,200.0,9.728e-05,2]
[426378078,1782336326000,560.701,0.00037528,120]
[426378086,1782336339000,1777.05,0.00028943,30]
[426378087,1782336340000,600000.0,0.00037528,30]
[426378091,1782336345000,631.05918453,0.00037528,120]
[426378092,1782336347000,1612.04,0.00029067,30]
[426378098,1782336351000,2393.75,0.00029102,30]
[426378097,1782336351000,560.7,0.00037528,120]
[426378112,1782336365000,552.89,0.00030083,30]
[426378114,1782336366000,552.89,0.00031198,30]
[426378120,1782336375000,1702.0238,0.00037528,60]
[426378123,1782336376000,1702.0238,0.00037528,60]
[426378122,1782336376000,1702.0238,0.00037528,60]
[426378121,1782336376000,1702.0238,0.00037528,60]
[426378124,1782336377000,1702.0238,0.00037528,60]
[426378127,1782336377000,1702.0238,0.00037528,60]
[426378126,1782336377000,1702.0238,0.00037528,60]
[426378125,1782336377000,1702.0238,0.00037528,60]
[426378128,1782336378000,1702.0238,0.00037528,60]
[426378130,1782336378000,1702.0238,0.00037528,60]
[426378129,1782336378000,1702.0238,0.00037528,60]
[426378134,1782336379000,1702.0238,0.00037528,60]
[426378133,1782336379000,1702.0238,0.00037528,60]
[426378132,1782336379000,1702.0238,0.00037528,60]
[426378131,1782336379000,1702.0238,0.00037528,60]
[426378138,1782336380000,1702.0238,0.00037528,60]
[426378137,1782336380000,1702.0238,0.00037528,60]
[426378135,1782336380000,1702.0238,0.00037528,60]
[426378140,1782336381000,1702.02505516,0.00037528,60]
[426378139,1782336381000,1702.0238,0.00037528,60]
[426378150,1782336406000,185.08,0.00030411,120]
[426378152,1782336410000,631.05918453,0.00037528,120]
[426378153,1782336416000,1666.24,0.00029022,30]
[426378154,1782336418000,502599.37666859,0.00037528,30]
[426378155,1782336420000,1498.52,0.00029145,30]
[426378157,1782336425000,2228.52,0.00029111,30]
[426378158,1782336426000,2228.52,0.00029909,30]
[426378159,1782336428000,9961.96,0.00030076,30]
[426378160,1782336429000,9961.96,0.00031141,30]
[426378361,1782336451000,552.53,0.00029474,30]
[426378362,1782336452000,552.53,0.00029666,30]
[426378363,1782336453000,552.53,0.00029858,30]
[426378365,1782336454000,552.53,0.00030242,30]
[426378364,1782336454000,552.53,0.0003005,30]
[426378366,1782336456000,552.53,0.00030433,30]
[426378370,1782336483000,162.72752717,0.00030137,30]
[426378371,1782336486000,1598.39,0.00029033,30]
[426378372,1782336487000,1598.39,0.00029857,30]
[426378374,1782336491000,1429.67,0.00029938,30]
[426378373,1782336491000,1429.67,0.00029154,30]
[426378375,1782336494000,2134.22,0.00029122,30]
[426378376,1782336495000,2134.22,0.00029916,30]
[426378378,1782336532000,541.4,0.00029671,30]
[426378377,1782336532000,541.4,0.00029481,30]
[426378379,1782336533000,541.4,0.00029862,30]
[426378380,1782336534000,541.4,0.00030053,30]
[426378381,1782336535000,541.4,0.00030243,30]
[426378383,1782336536000,541.4,0.00030434,30]
[426378382,1782336536000,8301.63,0.00031296,30]
[426378384,1782336537000,812.1,0.00025378,30]
[426378385,1782336547000,15090.56524924,0.000299,30]
[426378388,1782336560000,1522.84,0.00029044,30]
[426378389,1782336561000,1522.84,0.00029864,30]
[426378390,1782336562000,150.0,0.00030136,120]
[426378391,1782336562000,150.0,0.00030273,120]
[426378393,1782336562000,-1000.0,0.00010027,2]
[426378394,1782336562000,-871.35717847,0.00010027,2]
[426378395,1782336562000,150.0,0.00030547,120]
[426378392,1782336562000,150.0,0.0003041,120]
[426378397,1782336563000,150.0,0.00030821,120]
[426378396,1782336563000,150.0,0.00030684,120]
[426378398,1782336564000,150.0,0.00030958,120]
[426378400,1782336564000,150.0,0.00031232,120]
[426378399,1782336564000,150.0,0.00031095,120]
[426378402,1782336565000,150.0,0.00031506,120]
[426378401,1782336565000,150.0,0.00031369,120]
[426378403,1782336566000,1826.83,0.00029131,30]
[426378404,1782336567000,1826.83,0.00029922,30]
[426378412,1782336568000,1368.48,0.00029944,30]
[426378405,1782336568000,1368.48,0.00029164,30]
[426378420,1782336586000,-1500.0,0.00037506,30]
[426378415,1782336586000,-1500.0,0.00037506,30]
[426378416,1782336586000,-1500.0,0.00037506,30]
[426378417,1782336586000,-151.0,0.00037506,120]
[426378419,1782336586000,-151.0,0.00037506,120]
[426378421,1782336586000,-151.0,0.00037506,120]
[426378418,1782336586000,-1500.0,0.00037506,30]
[426378423,1782336586000,-151.0,0.00037506,120]
[426378428,1782336586000,-151.0,0.00037506,120]
[426378426,1782336586000,-151.0,0.00037506,120]
[426378427,1782336586000,-151.0,0.00037506,120]
[426378422,1782336586000,-1342.52513525,0.00037506,30]
[426378424,1782336586000,-151.0,0.00037506,120]
[426378425,1782336586000,-151.0,0.00037506,120]
[426378429,1782336586000,-151.0,0.00037506,120]
[426378440,1782336587000,-4000.0,0.00037506,120]
[426378439,1782336587000,-151.0,0.00037506,120]
[426378437,1782336587000,-151.0,0.00037506,120]
[426378436,1782336587000,-151.0,0.00037506,120]
[426378435,1782336587000,-151.0,0.00037506,120]
[426378434,1782336587000,-151.0,0.00037506,120]
[426378433,1782336587000,-151.0,0.00037506,120]
[426378432,1782336587000,-151.0,0.00037506,120]
[426378431,1782336587000,-151.0,0.00037506,120]